bitfinex/quotes_ETHUSD_20250220
["timestamp","ask_amount","ask_price","bid_price","bid_amount"]
[1740041111649,1.3362641,2735.7,2735.4,3.91576]
[1740041111869,6.0042,2735.8,2735.4,7.57143]
[1740041112431,6.0042,2735.8,2735.4,7.57134]
[1740041112719,6.0042,2735.8,2735.5,3.65561]
[1740041114627,5.24,2735.8,2735.5,3.65561]
[1740041115027,5.24,2735.8,2735.7,3.65537]
[1740041115537,5.24,2735.8,2735.7,4.42977]
[1740041115737,5.24,2735.8,2735.7,1.582926]
[1740041115952,5.24,2735.8,2735.6,3.65549]
[1740041116764,5.24,2735.8,2735.6,3.65543]
[1740041117582,5.24,2735.8,2735.7,3.65537]
[1740041118335,5.24,2735.8,2735.7,4.40927]
[1740041121065,5.3392,2735.9,2735.7,0.7539]
[1740041121275,5.3392,2735.9,2735.8,3.65523]
[1740041126696,0.7842,2735.8,2735.6,3.6555]
[1740041126860,0.7842,2735.8,2735.7,0.26]
[1740041129756,0.7842,2735.8,2735.5,3.65557]
[1740041129997,0.7842,2735.8,2735.6,3.91543]
[1740041130359,6.6754641,2735.9,2735.6,3.91543]
[1740041130585,6.6754641,2735.9,2735.7,3.65536]
[1740041130996,5.3392,2735.9,2735.8,3.65523]
[1740041131296,5.3392,2735.9,2735.6,3.91537]
[1740041131501,5.3392,2735.9,2735.7,4.4489767]
[1740041132085,5.3392,2735.9,2735.6,3.91548]
[1740041133201,5.3392,2735.9,2735.6,0.26]
[1740041133564,6.6754641,2735.9,2735.6,0.26]
[1740041134406,0.8062,2735.8,2735.6,0.26]
[1740041138628,6.0462,2735.8,2735.6,0.26]
[1740041139217,1.3362641,2735.7,2735.3,6.6558]
[1740041139381,1.3362641,2735.7,2735.4,0.26]
[1740041139778,1.3362641,2735.7,2735.4,3.91574]
[1740041140597,1.3362641,2735.7,2735.3,8.22527]
[1740041140598,2.1375641,2735.5,2735.2,8.214]
[1740041140795,1.3362641,2735.3,2735.2,8.214]
[1740041141117,5.24,2735.4,2735.2,12.13003]
[1740041142222,1.3362641,2735.3,2735.2,8.474]
[1740041142516,5.24,2735.4,2735.2,8.474]
[1740041142738,5.24,2735.4,2735.2,12.13003]
[1740041143814,0.7858,2735.3,2735.2,8.474]
[1740041144605,7.3620641,2735.3,2735.2,8.474]
[1740041145770,6.0258,2735.3,2735.2,8.474]
[1740041146654,6.0258,2735.3,2735.2,12.13003]
[1740041146853,5.24,2735.3,2735.2,12.13003]
[1740041150476,5.24,2735.3,2735.2,13.56441536]
[1740041150774,5.24,2735.5,2735.4,3.65577]
[1740041154029,5.24,2735.5,2735.3,3.6559]
[1740041154434,5.24,2735.5,2735.3,7.31173]
[1740041154628,5.24,2735.5,2735.4,3.65577]
[1740041155263,5.24,2735.5,2735.4,5.37776854]
[1740041155438,5.24,2735.5,2735.4,5.63776854]
[1740041155643,5.24,2735.5,2735.4,1.98199854]
[1740041156468,5.24,2735.8,2735.4,1.98199854]
[1740041156767,5.24,2735.8,2735.7,3.65537]
[1740041156969,5.24,2735.8,2735.7,0.365537]
[1740041157129,5.24,2735.8,2735.5,4.45502]
[1740041157635,5.24,2735.8,2735.5,0.7994]
[1740041157968,5.24,2735.8,2735.6,3.65548]
[1740041162878,5.24,2735.8,2735.6,3.65543]
[1740041164062,5.24,2735.8,2735.7,3.65537]
[1740041164288,5.24,2735.8,2735.7,5.25749]
[1740041164860,0.0992,2735.9,2735.8,3.65523]
[1740041165085,0.0992,2735.9,2735.8,4.44643]
[1740041165772,0.0992,2735.9,2735.8,5.7826941]
[1740041167499,0.0992,2735.9,2735.8,4.44643]
[1740041167697,0.0992,2735.9,2735.8,5.83688141]
[1740041171498,0.0992,2735.9,2735.8,7.17314551]
[1740041174802,0.0992,2735.9,2735.8,5.83688141]
[1740041176462,0.0992,2735.9,2735.8,14.04988141]
[1740041180909,0.0992,2735.9,2735.8,12.12823]
[1740041181543,0.0992,2735.9,2735.8,8.213]
[1740041181723,0.9271,2735.9,2735.8,8.473]
[1740041181924,0.0992,2735.9,2735.8,8.473]
[1740041182814,0.0992,2735.9,2735.8,12.12823]
[1740041183019,0.0992,2735.9,2735.8,10.130272]
[1740041183555,0.0992,2735.9,2735.8,13.785502]
[1740041184822,0.0992,2735.9,2735.8,10.130272]
[1740041185454,0.0992,2735.9,2735.8,8.213]
[1740041185676,9.8222,2735.9,2735.8,8.213]
[1740041185974,5.8892,2735.9,2735.2,3.65601]
[1740041186175,1.3362641,2735.7,2735.3,0.26]
[1740041186379,1.3362641,2735.7,2735.3,3.91589]
[1740041186580,0.759,2735.6,2735.3,4.973083]
[1740041186791,0.759,2735.6,2735.3,8.628903]
[1740041186981,0.759,2735.6,2735.3,4.973013]
[1740041187141,6.0982,2735.9,2735.4,0.7843]
[1740041187341,6.0982,2735.9,2735.8,3.65523]
[1740041187552,6.0982,2735.9,2735.6,3.65541]
[1740041188245,6.0982,2735.9,2735.6,7.31084]
[1740041188783,6.0982,2735.9,2735.6,3.65541]
[1740041189080,8.17791051,2735.9,2735.4,3.6557]
[1740041189381,7.4344641,2735.9,2735.5,3.65558]
[1740041189687,7.4344641,2735.9,2735.4,3.65569]
[1740041189873,7.4344641,2735.9,2735.5,3.65559]
[1740041190071,7.4344641,2735.9,2735.4,3.65569]
[1740041190451,4.9916441,2735.7,2735.2,3.65596]
[1740041190674,0.8126,2735.6,2735.3,0.26]
[1740041192409,3.65564,2735.5,2735.3,0.26]
[1740041192575,6.0526,2735.6,2735.3,0.26]
[1740041193095,6.0526,2735.6,2735.4,0.26]
[1740041195642,3.65564,2735.5,2735.1,3.0]
[1740041195837,0.8131,2735.4,2735.2,0.26]
[1740041197240,4.46888,2735.4,2735.2,0.26]
[1740041197442,4.46888,2735.4,2735.3,0.26]
[1740041197606,0.7961,2735.3,2734.9,8.213]
[1740041197811,0.7961,2735.3,2735.0,1.812596]
[1740041198046,6.0361,2735.3,2735.0,1.812596]
[1740041200166,6.0361,2735.3,2735.0,5.468896]
[1740041201916,6.0361,2735.3,2735.0,9.125126]
[1740041202049,6.0361,2735.3,2735.0,5.468826]
[1740041203547,6.0361,2735.3,2735.0,9.125046]
[1740041203743,6.0361,2735.3,2735.1,3.65614]
[1740041204053,6.0361,2735.3,2735.1,5.3899356]
[1740041204376,5.24,2735.3,2735.1,5.3899356]
[1740041204553,5.24,2735.3,2735.2,3.65603]
[1740041209960,5.24,2735.8,2735.3,3.65589]
[1740041210946,5.24,2735.8,2735.5,3.65563]
[1740041214489,5.24,2735.8,2735.2,0.7838]
[1740041214786,5.24,2735.8,2735.7,3.65537]
[1740041215689,5.24,2735.8,2735.6,3.6555]
[1740041215879,6.1667,2735.9,2735.7,3.65537]
[1740041216082,6.1667,2735.9,2735.8,0.26]
[1740041220269,9.8218,2735.9,2735.3,3.0]
[1740041220510,0.7548,2735.8,2735.3,3.0]
[1740041220767,0.7548,2735.6,2735.4,0.26]
[1740041221783,5.9948,2735.6,2735.4,0.26]
[1740041226408,5.02952,2735.5,2734.9,8.213]
[1740041226604,0.8238,2735.3,2735.0,0.26]
[1740041227294,4.47977,2735.3,2735.0,0.26]
[1740041227636,0.8238,2735.3,2735.0,0.26]
[1740041228633,4.47977,2735.3,2735.0,0.26]
[1740041228835,5.872332,2735.3,2735.0,0.26]
[1740041229139,5.24,2735.2,2734.9,8.213]
[1740041229290,8.89611,2735.2,2735.1,0.26]
[1740041231231,5.24,2735.2,2735.1,0.26]
[1740041232058,5.24,2735.2,2734.9,8.213]
[1740041232240,5.24,2735.2,2735.1,0.26]
[1740041232535,8.89603,2735.2,2735.1,0.26]
[1740041233309,11.020104,2735.2,2735.1,0.26]
[1740041233529,11.020104,2735.2,2734.9,8.213]
[1740041233530,3.65624,2735.1,2734.9,8.213]
[1740041233699,8.89624,2735.1,2734.9,8.213]
[1740041234034,8.89624,2735.1,2735.0,0.26]
[1740041236108,5.24,2735.1,2735.0,0.26]
[1740041236919,4.9848,2735.0,2734.9,8.213]
[1740041237198,10.2323,2735.0,2734.9,8.213]
[1740041238703,13.2323,2735.0,2734.9,8.213]
[1740041238864,0.7835,2734.3,2733.8,3.65782]
[1740041239062,6.0235,2734.3,2733.9,0.26]
[1740041239300,6.0235,2734.3,2733.9,3.91765]
[1740041240119,6.0235,2734.3,2734.0,3.65761]
[1740041242362,6.0235,2734.3,2733.9,0.26]
[1740041243709,6.0235,2734.3,2733.9,3.91774]
[1740041244001,6.0235,2734.3,2733.9,3.65774]
[1740041244219,6.0235,2734.3,2734.0,0.26]
[1740041245482,3.65739,2734.2,2734.0,0.26]
[1740041246421,6.0235,2734.3,2734.0,0.26]
[1740041246618,6.0235,2734.3,2734.1,0.26]
[1740041248728,6.0235,2734.3,2734.2,0.26]
[1740041250690,9.68074,2734.3,2734.2,0.26]
[1740041251140,11.564532,2734.3,2734.2,0.26]
[1740041251586,3.65737,2734.2,2733.7,7.53317035]
[1740041251790,3.65737,2734.2,2733.8,0.26]
[1740041252496,3.65737,2734.2,2733.7,7.53311035]
[1740041252696,3.65737,2734.2,2733.8,0.26]
[1740041254430,7.907292,2734.3,2733.8,3.91784]
[1740041254652,5.24,2734.2,2733.8,3.91784]
[1740041255656,5.24,2734.2,2733.8,0.26]
[1740041255860,8.8974,2734.2,2733.8,0.26]
[1740041256055,8.8974,2734.2,2733.8,3.91789]
[1740041256420,5.24,2734.2,2733.8,3.91789]
[1740041260825,8.89738,2734.2,2733.8,0.26]
[1740041261021,3.65752,2734.1,2733.9,0.26]
[1740041261221,3.65752,2734.1,2733.7,3.06453035]
[1740041261222,0.786,2733.9,2733.7,3.06453035]
[1740041261417,4.44384,2733.9,2733.8,0.26]
[1740041261622,3.65791,2733.8,2733.7,3.06453035]
[1740041261817,4.20791,2733.8,2733.7,3.06453035]
[1740041262025,9.89231066,2733.8,2733.7,3.06453035]
[1740041262973,4.9717,2733.7,2733.5,8.216]
[1740041263185,5.24,2733.6,2733.5,8.216]
[1740041264847,5.24,2733.6,2733.4,0.26]
[1740041266136,5.24,2733.6,2733.4,3.91844]
[1740041266439,5.24,2733.6,2733.4,0.26]
[1740041269638,5.24,2733.6,2733.5,4.45611]
[1740041270274,5.24,2733.6,2733.5,5.293565]
[1740041272279,5.24,2734.0,2733.5,5.293565]
[1740041272477,5.24,2734.0,2733.6,3.65814]
[1740041272677,5.24,2734.0,2733.5,3.7978]
[1740041272875,5.24,2734.0,2733.8,3.65785]
[1740041273417,5.24,2734.2,2733.9,4.42187]
[1740041273580,5.24,2734.2,2734.1,3.65751]
[1740041273882,5.24,2734.3,2734.0,3.65763]
[1740041274674,5.24,2734.3,2733.9,0.7641]
[1740041274878,5.24,2734.3,2733.9,1.206292]
[1740041275081,5.24,2734.3,2733.9,4.863972]
[1740041276547,5.24,2734.3,2734.0,3.6576]
[1740041277874,5.24,2734.3,2733.9,1.206292]
[1740041278147,5.24,2734.3,2733.6,0.8212]
[1740041278148,8.89728,2734.3,2733.6,0.8212]
[1740041278391,4.45506,2734.2,2733.6,8.13736]
[1740041278590,4.45506,2734.2,2733.6,4.47926]
[1740041279195,0.7976,2734.2,2733.6,4.47926]
[1740041279370,3.65754,2734.1,2733.6,4.47926]
[1740041279565,0.7976,2734.2,2733.6,0.8212]
[1740041279770,0.55,2734.0,2733.7,0.26]
[1740041280093,0.7976,2734.2,2733.7,0.26]
[1740041280297,0.7976,2734.2,2733.8,3.65784]
[1740041281902,0.7976,2734.2,2733.7,3.91802]
[1740041281903,4.45505,2734.2,2733.7,3.91802]
[1740041282065,0.7976,2734.2,2733.7,3.91802]
[1740041282262,0.55,2734.1,2733.7,0.26]
[1740041282596,4.20759,2734.1,2733.7,0.26]
[1740041282777,4.20759,2734.1,2733.7,3.91803]
[1740041283401,4.20759,2734.1,2733.7,0.26]
[1740041283604,3.65764,2734.0,2733.7,0.26]
[1740041283766,3.65764,2734.0,2733.8,0.26]
[1740041283767,3.65782,2733.9,2733.8,0.26]
[1740041284303,8.89782,2733.9,2733.8,0.26]
[1740041284672,10.989566,2733.9,2733.8,0.26]
[1740041285000,3.65793,2733.8,2733.4,8.22]
[1740041285200,3.65793,2733.8,2733.5,0.26]
[1740041285708,3.65814,2733.7,2733.6,0.26]
[1740041286011,0.55,2733.6,2733.4,8.22]
[1740041286217,0.55,2733.6,2733.5,0.26]
[1740041286379,3.65814,2733.7,2733.5,0.26]
[1740041286580,3.65793,2733.8,2733.5,0.26]
[1740041287071,6.0212,2733.9,2733.7,3.65801]
[1740041287275,6.0212,2733.9,2733.5,0.26]
[1740041287276,5.24,2733.9,2733.5,7.57647]
[1740041287583,5.24,2733.9,2733.6,3.65815]
[1740041288507,5.24,2734.0,2733.7,4.43196]
[1740041288712,5.24,2734.0,2733.8,3.65781]
[1740041289681,5.24,2734.0,2733.7,4.43196]
[1740041289888,5.24,2734.0,2733.9,3.65777]
[1740041290296,5.24,2734.0,2733.7,0.774]
[1740041290508,5.24,2734.0,2733.5,4.70123]
[1740041290694,5.24,2734.0,2733.5,5.993343]
[1740041290897,8.8977,2734.0,2733.5,5.993343]
[1740041291105,4.48748,2733.9,2733.4,3.0]
[1740041291306,3.65791,2733.8,2733.6,0.26]
[1740041292321,7.31595,2733.8,2733.6,0.26]
[1740041292490,4.45874,2733.7,2733.6,0.26]
[1740041293101,9.69874,2733.7,2733.6,0.26]
[1740041293713,6.0407,2733.7,2733.6,0.26]
[1740041295128,5.24,2733.7,2733.6,0.26]
[1740041295328,5.24,2733.7,2733.6,3.91817]
[1740041295704,5.24,2733.7,2733.6,4.752395]
[1740041297034,5.24,2733.7,2733.6,3.91817]
[1740041299225,5.24,2734.0,2733.8,3.65791]
[1740041299417,5.24,2734.0,2733.9,3.65777]
[1740041301630,5.24,2734.0,2733.8,3.65791]
[1740041302634,5.24,2734.0,2733.8,3.65782]
[1740041303834,5.24,2734.0,2733.9,3.65777]
[1740041304208,5.24,2734.0,2733.8,3.65782]
[1740041305136,5.24,2734.2,2733.8,3.65782]
[1740041307099,5.24,2734.2,2733.9,0.26]
[1740041307506,0.7849,2734.0,2733.9,0.26]
[1740041307713,4.99254,2734.0,2733.9,0.26]
[1740041308151,3.65785,2733.9,2733.3,9.0144]
[1740041308337,0.7577,2733.6,2733.4,0.26]
[1740041308512,0.7577,2733.6,2733.5,0.26]
[1740041310916,5.9977,2733.6,2733.5,0.26]
[1740041311545,5.24,2733.6,2733.5,0.26]
[1740041313620,5.24,2733.6,2733.5,5.46122866]
[1740041316967,5.24,2734.1,2733.7,3.65797]
[1740041319067,5.24,2734.1,2733.7,7.31594]
[1740041319472,5.24,2734.1,2733.7,3.65797]
[1740041321727,8.89752,2734.1,2733.5,4.69158]
[1740041321958,3.65781,2733.9,2733.5,0.26]
[1740041322365,0.8299,2734.0,2733.5,0.26]
[1740041322569,0.8299,2734.0,2733.5,3.91819]
[1740041322865,6.0699,2734.0,2733.6,0.26]
[1740041323476,6.0699,2734.0,2733.6,3.91815]
[1740041324059,9.72756,2734.0,2733.6,3.91815]
[1740041326173,6.0699,2734.0,2733.6,0.26]
[1740041326377,9.72762,2734.0,2733.6,0.26]
[1740041328563,6.0699,2734.0,2733.6,0.26]
[1740041328762,6.0699,2734.0,2733.6,4.73211]
[1740041329276,6.0699,2734.0,2733.7,3.65803]
[1740041329277,5.24,2734.0,2733.7,3.65803]
[1740041329476,5.24,2734.0,2733.7,3.65797]
[1740041330251,5.24,2734.0,2733.8,3.65782]
[1740041331995,5.24,2734.0,2733.9,3.65777]
[1740041332196,5.24,2734.0,2733.9,4.48807]
[1740041332401,5.24,2734.0,2733.9,5.302666]
[1740041333599,5.24,2734.0,2733.9,1.644896]
[1740041333788,5.24,2734.0,2733.9,0.8303]
[1740041334879,8.89724,2734.3,2733.9,0.8303]
[1740041336375,0.55,2734.2,2733.7,4.46503]
[1740041336778,0.55,2734.2,2733.8,3.6579]
[1740041337100,5.24,2734.3,2733.9,3.65776]
[1740041337306,3.65739,2734.2,2733.8,3.6579]
[1740041337512,3.65739,2734.2,2733.7,4.46507]
[1740041338204,3.65766,2734.0,2733.6,3.91817]
[1740041338366,0.7924,2734.1,2733.6,3.91817]
[1740041338565,0.7924,2734.1,2733.6,7.57634]
[1740041339067,0.7924,2734.1,2733.6,3.91817]
[1740041339270,0.7924,2734.1,2733.8,3.65791]
[1740041340705,5.24,2734.1,2733.8,3.65791]
[1740041342275,5.24,2734.1,2733.9,3.65776]
[1740041343213,5.24,2734.1,2734.0,3.65764]
[1740041343398,5.24,2734.2,2734.0,3.65764]
[1740041344284,5.24,2734.2,2733.8,0.82]
[1740041344488,5.24,2734.2,2733.7,7.31594]
[1740041344489,3.65752,2734.1,2733.7,3.65796]
[1740041344812,4.42922,2734.1,2733.7,3.65796]
[1740041345017,0.0992,2733.8,2733.7,3.65796]
[1740041349710,0.0992,2733.8,2733.7,3.65804]
[1740041350221,0.0992,2733.8,2733.6,4.71647]
[1740041350438,0.0992,2733.8,2733.7,3.65804]
[1740041351531,0.0992,2733.8,2733.6,0.7983]
[1740041351706,0.0992,2733.8,2733.7,0.26]
[1740041351707,0.898,2733.8,2733.7,0.26]
[1740041352086,0.898,2733.8,2733.5,3.65824]
[1740041352310,0.898,2733.8,2733.7,0.26]
[1740041354735,0.55,2733.6,2733.3,8.22]
[1740041354931,5.24,2733.5,2733.4,0.26]
[1740041357234,5.24,2733.5,2733.4,4.73784]
[1740041358533,5.24,2733.7,2733.5,3.65818]
[1740041358714,5.24,2733.7,2733.6,3.65817]
[1740041362731,0.0992,2733.8,2733.7,3.65804]
[1740041363252,0.0992,2733.8,2733.7,4.47184]
[1740041363611,0.0896,2733.8,2733.7,4.47184]
[1740041371170,0.0896,2733.8,2733.7,7.47184]
[1740041371335,0.0896,2733.8,2733.7,7.66273378]
[1740041371539,0.0896,2733.8,2733.7,9.15483293]
[1740041379437,1e-05,2733.8,2733.7,9.15483293]
[1740041381581,1e-05,2733.8,2733.7,14.48233293]
[1740041381761,0.7893,2735.2,2734.0,0.7682]
[1740041382078,0.7893,2735.2,2735.1,3.65617]
[1740041382285,0.7893,2735.2,2735.1,3.91617]
[1740041383253,0.792,2735.5,2735.3,3.65579]
[1740041383761,0.792,2735.5,2735.4,3.65577]
[1740041383961,0.792,2735.5,2735.3,3.65579]
[1740041384665,0.792,2735.5,2735.1,3.9161]
[1740041384864,0.792,2735.5,2735.1,0.26]
[1740041385082,0.7726,2735.4,2735.1,0.26]
[1740041385788,4.42838,2735.4,2735.1,0.26]
[1740041385963,0.8045,2735.3,2735.1,0.26]
[1740041386172,0.55,2735.2,2735.1,0.26]
[1740041386367,1.3545,2735.2,2735.1,0.26]
[1740041386593,1.855543,2735.2,2735.1,0.26]
[1740041387170,1.3545,2735.2,2735.1,0.26]
[1740041387793,0.8045,2735.2,2735.1,0.26]
[1740041388180,6.0445,2735.2,2735.1,0.26]
[1740041398513,9.70065,2735.2,2734.6,3.65671]
[1740041398681,9.70065,2735.2,2735.1,0.26]
[1740041398885,11.036306,2735.2,2735.1,0.26]
[1740041401428,11.586306,2735.2,2735.1,0.26]
[1740041401636,11.586306,2735.2,2734.5,8.217]
[1740041401637,0.8244,2735.0,2734.5,8.217]
[1740041401929,5.0307,2735.0,2734.9,0.26]
[1740041402229,5.7878582,2735.0,2734.9,0.26]
[1740041405621,2.1315582,2735.0,2734.9,0.26]
[1740041406142,7.3715582,2735.0,2734.9,0.26]
[1740041407325,11.0278582,2735.0,2734.9,0.26]
[1740041407498,7.3715582,2735.0,2734.9,0.26]
[1740041413391,5.24,2735.0,2734.9,0.26]
[1740041413643,5.24,2735.0,2734.9,3.91644]
[1740041414438,5.24,2735.0,2734.9,0.26]
[1740041418125,0.55,2735.1,2734.9,0.26]
[1740041422560,5.24,2735.2,2734.9,3.91633]
[1740041425390,5.24,2735.2,2735.1,3.65617]
[1740041425587,5.24,2735.3,2734.9,3.91643]
[1740041425885,5.24,2735.3,2735.0,3.6563]
[1740041430015,6.5770655,2735.4,2734.9,4.383713]
[1740041430219,6.5770655,2735.4,2735.0,3.65619]
[1740041430714,5.24,2735.4,2734.9,0.727283]
[1740041430915,5.24,2735.4,2735.1,3.65608]
[1740041431704,6.5770655,2735.4,2735.1,3.65608]
[1740041432217,6.5770655,2735.4,2734.9,3.91641]
[1740041432594,6.5770655,2735.4,2735.0,3.65629]
[1740041432790,6.5770655,2735.4,2734.9,3.91641]
[1740041433009,6.5770655,2735.4,2734.9,3.91635]
[1740041433209,6.5770655,2735.4,2734.9,7.57271]
[1740041433409,6.5770655,2735.4,2734.9,3.91635]
[1740041433710,6.5770655,2735.4,2734.9,7.57271]
[1740041434624,6.5770655,2735.4,2734.9,3.91635]
[1740041434829,10.2328555,2735.4,2734.9,3.91635]
[1740041435784,3.65591,2735.3,2734.9,0.26]
[1740041435988,0.7597,2735.1,2734.9,0.26]
[1740041441303,4.41595,2735.1,2734.9,0.26]
[1740041441984,9.65595,2735.1,2734.9,0.26]
[1740041442421,4.20635,2735.0,2734.5,9.0438]
[1740041442638,0.8135,2734.9,2734.6,0.26]
[1740041444947,0.8135,2734.9,2734.5,3.65689]
[1740041445250,0.8135,2734.9,2734.7,0.26]
[1740041446751,1.3370655,2734.8,2734.7,0.26]
[1740041447745,6.5770655,2734.8,2734.7,0.26]
[1740041448604,0.55,2734.7,2734.2,0.8312]
[1740041448812,2.1018655,2734.6,2734.3,0.26]
[1740041450259,2.1018655,2734.6,2734.3,3.91717]
[1740041450466,0.7648,2734.6,2734.3,3.91717]
[1740041451923,0.55,2734.7,2734.3,3.91715]
[1740041452125,0.55,2734.7,2734.3,7.57429]
[1740041452419,0.55,2734.7,2734.4,3.65704]
[1740041452746,0.55,2734.7,2734.3,8.35198]
[1740041453057,0.55,2734.7,2734.3,4.69484]
[1740041453624,5.24,2734.6,2734.3,8.35199]
[1740041454031,5.24,2734.6,2734.3,4.69484]
[1740041454232,5.24,2734.6,2734.3,8.35198]
[1740041454764,5.24,2734.6,2734.3,4.69484]
[1740041454967,5.24,2734.6,2734.3,3.91714]
[1740041456432,5.24,2734.6,2734.3,7.57431]
[1740041456632,5.24,2734.6,2734.3,7.5743]
[1740041456833,5.24,2734.6,2734.3,3.91714]
[1740041458471,5.24,2734.6,2734.4,3.65709]
[1740041461382,5.24,2734.6,2734.5,3.65697]
[1740041462692,5.24,2734.6,2734.4,4.048799]
[1740041463092,5.24,2734.6,2734.5,3.65697]
[1740041463489,5.24,2734.6,2734.4,0.391709]
[1740041463791,5.24,2734.6,2734.5,3.65697]
[1740041464286,5.24,2734.6,2734.5,4.4535469]
[1740041465703,5.24,2734.8,2734.5,4.4535469]
[1740041466204,5.24,2734.8,2734.6,3.65683]
[1740041467309,5.24,2734.8,2734.7,3.6567]
[1740041468849,5.24,2734.8,2734.5,4.4534969]
[1740041468977,5.24,2734.8,2734.6,3.6568]
[1740041469493,5.24,2734.8,2734.3,0.26]
[1740041469494,5.7673455,2734.7,2734.3,0.26]
[1740041469925,1.3370655,2734.5,2734.3,0.26]
[1740041470277,1.3370655,2734.5,2734.1,0.7589]
[1740041470478,1.3370655,2734.5,2734.2,7.57457]
[1740041471388,1.3370655,2734.5,2734.2,3.91728]
[1740041472414,1.3370655,2734.5,2734.2,0.26]
[1740041472622,1.3370655,2734.5,2734.2,3.91728]
[1740041472821,1.3370655,2734.5,2734.3,3.65724]
[1740041473116,1.3370655,2734.5,2734.2,0.26]
[1740041473790,1.3370655,2734.5,2734.2,3.91733]
[1740041474482,6.5770655,2734.5,2734.2,3.91733]
[1740041474685,6.5770655,2734.5,2734.2,3.91729]
[1740041476314,6.5770655,2734.5,2734.2,3.91728]
[1740041478347,6.5770655,2734.5,2734.2,7.57458]
[1740041478547,6.5770655,2734.5,2734.2,3.91728]
[1740041479051,6.5770655,2734.5,2734.3,3.65723]
[1740041485384,6.5770655,2734.5,2734.2,3.9173]
[1740041486078,6.5770655,2734.5,2734.3,3.65723]
[1740041487295,5.24,2734.5,2734.4,3.6571]
[1740041488085,5.24,2734.5,2734.4,4.494266]
[1740041489184,5.24,2734.5,2734.4,5.312166]
[1740041492297,6.5770655,2734.9,2734.4,5.312166]
[1740041492498,6.5770655,2734.9,2734.6,3.6568]
[1740041493390,6.5770655,2734.9,2734.7,3.65663]
[1740041494979,6.5770655,2734.9,2734.5,7.31379]
[1740041495473,6.5770655,2734.9,2734.6,3.65679]
[1740041496325,6.5770655,2734.9,2734.7,3.65669]
[1740041496613,5.24,2734.9,2734.8,3.65657]
[1740041497519,5.24,2734.9,2734.8,4.467926]
[1740041497726,5.24,2734.9,2734.8,5.251826]
[1740041498294,6.5770655,2735.3,2735.0,3.65621]
[1740041498481,5.24,2735.3,2735.1,3.91615]
[1740041499710,5.24,2735.4,2735.1,3.91615]
[1740041500880,1.3370655,2735.3,2735.1,3.91615]
[1740041502537,5.24,2735.4,2735.1,1.01725]
[1740041502737,5.24,2735.4,2735.1,0.26]
[1740041502945,5.24,2735.4,2735.2,3.65603]
[1740041503746,6.5770655,2735.4,2735.1,0.26]
[1740041504099,6.5770655,2735.4,2735.2,3.65602]
[1740041504304,6.5770655,2735.4,2735.1,3.91615]
[1740041504744,6.5770655,2735.4,2735.2,3.65602]
[1740041504911,6.5770655,2735.4,2735.1,4.68975]
[1740041505108,6.5770655,2735.4,2735.1,8.34584]
[1740041505324,6.5770655,2735.4,2735.1,5.23971928]
[1740041505946,6.5770655,2735.4,2735.1,1.58362928]
[1740041506252,6.5770655,2735.4,2735.1,5.23979928]
[1740041507005,6.5770655,2735.4,2735.1,1.58362928]
[1740041507208,6.5770655,2735.4,2735.1,4.68973]
[1740041514416,6.5770655,2735.4,2735.1,4.68969]
[1740041514649,6.5770655,2735.4,2735.1,1.0336]
[1740041514816,6.5770655,2735.4,2735.1,4.68976]
[1740041518912,6.5770655,2735.4,2735.1,0.26]
[1740041520358,6.5770655,2735.4,2735.1,3.91615]
[1740041520719,6.5770655,2735.4,2735.1,0.26]
[1740041520933,6.5770655,2735.4,2735.1,3.91616]
[1740041521358,6.5770655,2735.4,2735.1,0.26]
[1740041522462,6.5770655,2735.4,2735.1,3.91613]
[1740041522639,6.5770655,2735.4,2735.1,4.45667651]
[1740041524558,6.5770655,2735.4,2735.1,0.80054651]
[1740041524763,6.5770655,2735.4,2735.1,0.26]
[1740041526016,6.5770655,2735.4,2735.1,3.91616]
[1740041528864,10.2328555,2735.4,2735.1,0.26]
[1740041529070,6.5770655,2735.4,2735.1,0.26]
[1740041531067,6.5770655,2735.4,2735.1,3.91617]
[1740041534374,6.5770655,2735.4,2735.1,0.26]
[1740041534670,10.2328655,2735.4,2735.1,0.26]
[1740041534874,6.5770655,2735.4,2735.1,0.26]
[1740041538744,6.5770655,2735.4,2735.1,3.91616]
[1740041539145,5.24,2735.4,2735.3,3.6559]
[1740041539348,5.24,2735.4,2735.2,3.65597]
[1740041541241,5.24,2735.8,2735.5,3.65551]
[1740041541547,5.24,2735.8,2735.6,3.65549]
[1740041541886,11.0470955,2736.0,2735.4,3.65564]
[1740041542061,4.9923855,2735.8,2735.4,0.80648]
[1740041542271,3.65522,2735.9,2735.4,4.46218]
[1740041542449,8.6475155,2735.9,2735.4,0.80648]
[1740041542666,4.9922855,2735.9,2735.4,4.46224]
[1740041542875,4.9922555,2735.9,2735.4,4.46224]
[1740041543030,0.7713,2735.6,2735.5,0.26]
[1740041543935,1.3370655,2735.7,2735.5,0.26]
[1740041544386,2.1480655,2735.9,2735.5,4.70612]